fUSD/lending_fUSD_20260320
["ID","MTS","AMOUNT","RATE_DAILY","PERIOD"]
[408621963,1773982246892,-505.22385091,0.000153,5]
[408621964,1773982246901,-868.03,0.00015399,2]
[408621965,1773982246911,-2855.19,0.00015507,2]
[408621966,1773982246921,-442.93511681,0.00015527,2]
[408621967,1773982246930,-2706.63434673,0.00015549,2]
[408621968,1773982246939,-1095.30715916,0.00015655,2]
[408621969,1773982246949,-150.0,0.00015694,2]
[408621970,1773982246958,-439.7,0.00015753,2]
[408621971,1773982246967,-288.89,0.00015769,2]
[408621972,1773982246976,-152.0,0.00015783,8]
[408621973,1773982246986,-1700.0,0.000158,5]
[408621974,1773982246995,-380.0,0.00015836,2]
[408621975,1773982247005,-2000.0,0.0001589,2]
[408621976,1773982247014,-2855.19,0.00015895,2]
[408621977,1773982247023,-9256.1402848,0.000159,2]
[408621980,1773982717285,-1194.5,0.00011468,2]
[408621981,1773982717312,-1539.1,0.00011468,2]
[408621982,1773982717336,-195.0,0.00011727,2]
[408621983,1773982717360,-195.0,0.000119,2]
[408621984,1773982717385,-195.0,0.000119,2]
[408621985,1773982717408,-199.9604653,0.000119,2]
[408621986,1773982717432,-1200.0,0.00011985,2]
[408622000,1773983431486,-814.44106839,0.000105,5]
[408622001,1773983431515,-4717.55893161,0.000105,5]
[408622002,1773983431528,-177.16080673,0.00011368,2]
[408622003,1773983431546,-200.0,0.00011468,2]
[408622004,1773983431557,-1500.0,0.00011468,2]
[408622005,1773983431567,-300.18771834,0.0001155,2]
[408622006,1773983431576,-200.0,0.000117,4]
[408622007,1773983431587,-113655.92831299,0.00011787,2]
[408622008,1773983437522,-2216.89488701,0.00011787,2]
[408622009,1773983437547,-359.64012914,0.000118,4]
[408622010,1773983437565,-40.35987086,0.000118,4]
[408622011,1773983437579,-6289.73662505,0.00011887,2]
[408622012,1773983437591,-580.23789574,0.00011887,2]
[408622013,1773983437601,-1903.414029,0.00011887,2]
[408622014,1773983437611,-1685.23062757,0.00011887,2]
[408622015,1773983437619,-1499.25322416,0.00011887,2]
[408622019,1773983439702,-1241.22429915,0.00011887,2]
[408622020,1773983439919,-745.41129933,0.00011887,2]
[408622021,1773983439930,-1000.0,0.00011887,2]
[408622022,1773983439940,-2335.0045,0.00011887,2]
[408622023,1773983439950,-23618.3198,0.00011887,2]
[408622024,1773983439959,-2500.0,0.00011887,2]
[408622025,1773983439971,-6762.1846,0.00011887,2]
[408622026,1773983439980,-1417.57506703,0.0001189,2]
[408622027,1773983439990,-21212.10404936,0.0001189,2]
[408622028,1773983439999,-700.0,0.000119,4]
[408622029,1773983440009,-2766.034,0.00011956,2]
[408622030,1773983440019,-184.137,0.00011956,2]
[408622031,1773983440028,-500.0,0.00011973,2]
[408622032,1773983440038,-500.0,0.00011986,2]
[408622033,1773983440048,-500.0,0.00011986,2]
[408622034,1773983440059,-500.0,0.00011986,2]
[408622035,1773983440068,-500.0,0.00011986,2]
[408622036,1773983440077,-500.0,0.00011986,2]
[408622037,1773983440087,-500.0,0.00011986,2]
[408622038,1773983440096,-500.0,0.00011986,2]
[408622039,1773983440107,-500.0,0.00011986,2]
[408622040,1773983440117,-500.0,0.00011986,2]
[408622041,1773983440126,-500.0,0.00011986,2]
[408622042,1773983440136,-500.0,0.00011986,2]
[408622043,1773983440145,-500.0,0.00011986,2]
[408622044,1773983440155,-367.83916186,0.00011986,2]
[408622045,1773983440164,-500.0,0.00011986,2]
[408622046,1773983440174,-500.0,0.00011986,2]
[408622047,1773983440183,-500.0,0.00011986,2]
[408622048,1773983440193,-500.0,0.00011986,2]
[408622049,1773983440202,-500.0,0.00011986,2]
[408622050,1773983440211,-500.0,0.00011986,2]
[408622051,1773983440220,-500.0,0.00011986,2]
[408622052,1773983440230,-500.0,0.00011986,2]
[408622053,1773983440239,-500.0,0.00011986,2]
[408622054,1773983440249,-500.0,0.00011986,2]
[408622055,1773983440258,-500.0,0.00011986,2]
[408622056,1773983440268,-500.0,0.00011986,2]
[408622057,1773983440278,-500.0,0.00011986,2]
[408622058,1773983440287,-500.0,0.00011986,2]
[408622059,1773983440297,-500.0,0.00011986,2]
[408622060,1773983440308,-500.0,0.00011986,2]
[408622061,1773983440318,-500.0,0.00011986,2]
[408622062,1773983440328,-500.0,0.00011986,2]
[408622063,1773983440338,-500.0,0.00011986,2]
[408622064,1773983440348,-500.0,0.00011986,2]
[408622065,1773983440358,-500.0,0.00011986,2]
[408622066,1773983440368,-500.0,0.00011986,2]
[408622067,1773983440378,-500.0,0.00011986,2]
[408622068,1773983440388,-500.0,0.00011986,2]
[408622069,1773983440398,-200.0,0.00011986,2]
[408622070,1773983440408,-500.0,0.00011986,2]
[408622071,1773983440419,-500.0,0.00011986,2]
[408622072,1773983440429,-204.67732018,0.00011986,2]
[408622073,1773983440439,-165.76182842,0.00011986,2]
[408622075,1773983440450,-193.502998,0.00011986,2]
[408622077,1773983440460,-9842.08,0.00012055,2]
[408622079,1773983440470,-15159.94821231,0.00012153,2]
[408622081,1773983440479,-500.0,0.00012193,2]
[408622083,1773983440489,-529.91766808,0.00012193,2]
[408622085,1773983440500,-151.0,0.00012193,2]
[408622087,1773983440510,-164.49481568,0.00012193,2]
[408622089,1773983440522,-500.0,0.00012193,2]
[408622091,1773983440532,-526.81274979,0.00012193,2]
[408622093,1773983440543,-155.0,0.00012199,2]
[408622095,1773983440552,-189444.93997396,0.000122,2]
[408622098,1773983440566,-12520.95056802,0.000122,2]
[408622100,1773983440577,-385.4641231,0.000122,2]
[408622103,1773983440589,-420.51444515,0.000122,2]
[408622116,1773983442445,-6150.40569559,0.000122,2]
[408622117,1773983442660,-500.32980299,0.000122,2]
[408622118,1773983442672,-7777.05969317,0.000122,2]
[408622122,1773983445348,-166.66,0.00011244,2]
[408622123,1773983445358,-166.66,0.0001148,2]
[408622124,1773983445368,-166.66,0.00011717,2]
[408622125,1773983445378,-166.66,0.00011954,2]
[408622126,1773983445388,-166.66,0.0001219,2]
[408622127,1773983445399,-36502.8643656,0.000122,2]
[408622128,1773983445459,-7388.10291589,0.000122,2]
[408622132,1773984050069,332.34646068,0.00012575,10]
[408622146,1773984631576,-300.0,9.499e-05,2]
[408622147,1773984631586,-375.352,9.499e-05,2]
[408622148,1773984631636,-824.648,9.499e-05,2]
[408622149,1773984631646,-150.0,9.499e-05,2]
[408622150,1773984631656,-1227.7140399,9.5e-05,3]
[408622151,1773984631694,-14301.21777574,9.5e-05,3]
[408622152,1773984631706,-162850.65581664,9.5e-05,3]
[408622160,1773984637662,-545.14865765,9.5e-05,3]
[408622162,1773984637674,-577.73782165,9.5e-05,3]
[408622163,1773984637687,-387.85191081,9.5e-05,3]
[408622164,1773984637699,-985.555174,9.5e-05,3]
[408622165,1773984637721,-14590.60567993,9.5e-05,3]
[408622166,1773984637737,-1164.20361154,9.5e-05,3]
[408622167,1773984637749,-304.49801358,9.5e-05,3]
[408622168,1773984637763,-987.09350095,9.5e-05,3]
[408622169,1773984637775,-1337.35,9.5e-05,3]
[408622170,1773984637787,-1570.72123601,9.5e-05,3]
[408622171,1773984637839,-442.74609516,9.5e-05,3]
[408622172,1773984637852,-3150.75,9.5e-05,3]
[408622173,1773984637867,-1627.45921772,9.5e-05,3]
[408622174,1773984637881,-431.69598331,9.5e-05,3]
[408622175,1773984637894,-999.8506,9.5e-05,3]
[408622176,1773984637907,-1000.51193,9.5e-05,3]
[408622190,1773984640152,-333.26194966,9.5e-05,3]
[408622191,1773984640164,-622.40882322,9.5e-05,3]
[408622192,1773984640176,-265.1286,9.5e-05,3]
[408622193,1773984640188,-265.96,9.5e-05,3]
[408622194,1773984640370,-184669.82751602,9.5e-05,3]
[408622195,1773984640381,-261.28011819,0.000101,2]
[408622196,1773984640392,-287.0,0.00010449,2]
[408622197,1773984640402,-1680.0,0.00010449,2]
[408622198,1773984640411,-1980.6147155,0.000109,2]
[408622199,1773984640421,-6274.92627868,0.00011099,2]
[408622200,1773984640433,-506.37642362,0.00011099,2]
[408622201,1773984640445,-254.12738969,0.00011099,2]
[408622202,1773984640458,-1414.0,0.00011099,2]
[408622206,1773984642965,-539.44516753,0.00011099,2]
[408622215,1773984645542,-3134.18314424,0.00011099,2]
[408622218,1773984840926,154.9,5.956e-05,2]
[408622219,1773984841108,154.9,6.807e-05,2]
[408622220,1773984912367,183.0,6.807e-05,3]
[408622224,1773985316024,1910.02083938,6.868e-05,2]
[408622225,1773985316060,3089.98916062,6.868e-05,2]
[408622226,1773985316084,5000.01,6.868e-05,2]
[408622227,1773985316107,594.74173993,6.868e-05,2]
[408622228,1773985316138,2062.46310781,6.868e-05,2]
[408622229,1773985316178,2176.16155516,6.868e-05,2]
[408622234,1773985831852,-154.9,7.658e-05,2]
[408622235,1773985831870,-250.0,7.658e-05,2]
[408622236,1773985831882,-250.0,8.424e-05,2]
[408622237,1773985831894,-250.0,8.424e-05,2]
[408622238,1773985831905,-154.9,8.509e-05,2]
[408622239,1773985831918,-154.9,9.36e-05,2]
[408622240,1773985831930,-150.0,9.999e-05,2]
[408622241,1773985831943,-77931.30915968,0.0001,2]
[408622242,1773985831955,-154.9,0.00010211,2]
[408622243,1773985831967,-152.46,0.00010822,2]
[408622246,1773985831978,-1500.0,0.00010822,2]
[408622247,1773985831991,-10000.0,0.00010901,2]
[408622248,1773985832002,-150.0,0.00010959,2]
[408622249,1773985832014,-200.0,0.00010988,2]
[408622250,1773985832025,-154.9,0.00011061,2]
[408622251,1773985832038,-168.05,0.00011357,2]
[408622252,1773985832050,-654.90759188,0.000115,2]
[408622253,1773985832061,-1440.76106094,0.000115,2]
[408622254,1773985832073,-1604.88827704,0.000115,2]
[408622255,1773985832085,-1668.85993039,0.000115,2]
[408622256,1773985832097,-1544.0,0.00011507,2]
[408622257,1773985832108,-2500.0,0.00011586,2]
[408622258,1773985832119,-2086.75120311,0.0001159,2]
[408622259,1773985832131,-13103.32221016,0.0001159,2]
[408622260,1773985832143,-500.63590136,0.00011673,2]
[408622261,1773985832154,-502.16126991,0.00011673,2]
[408622262,1773985832166,-503.85332488,0.00011673,2]
[408622263,1773985832178,-504.44754648,0.00011673,2]
[408622264,1773985832190,-3498.756,0.00011673,2]
[408622265,1773985832204,-180.944,0.00011673,2]
[408622266,1773985832219,-503.09631867,0.00011679,2]
[408622267,1773985832230,-200.0,0.00011679,2]
[408622268,1773985832243,-500.0,0.00011685,2]
[408622269,1773985832254,-647.1990911,0.00011685,2]
[408622270,1773985832266,-500.0,0.00011685,2]
[408622271,1773985832278,-500.0,0.00011685,2]
[408622272,1773985832288,-500.0,0.00011685,2]
[408622273,1773985832300,-500.0,0.00011685,2]
[408622274,1773985832312,-500.0,0.00011685,2]
[408622275,1773985832323,-500.0,0.00011685,2]
[408622276,1773985832334,-500.0,0.00011685,2]
[408622277,1773985832345,-500.0,0.00011685,2]
[408622278,1773985832356,-500.0,0.00011685,2]
[408622279,1773985832367,-500.0,0.00011685,2]
[408622280,1773985832378,-500.0,0.00011685,2]
[408622281,1773985832389,-500.0,0.00011685,2]
[408622282,1773985832402,-500.0,0.00011685,2]
[408622283,1773985832414,-500.0,0.00011685,2]
[408622284,1773985832425,-500.0,0.00011685,2]
[408622285,1773985832437,-500.0,0.00011685,2]
[408622286,1773985832448,-500.0,0.00011685,2]
[408622287,1773985832460,-500.0,0.00011685,2]
[408622288,1773985832471,-179.04347363,0.00011685,2]
[408622289,1773985832482,-500.0,0.00011685,2]
[408622290,1773985832494,-500.0,0.00011685,2]
[408622291,1773985832504,-200.30463064,0.00011685,2]
[408622292,1773985832515,-500.0,0.00011685,2]
[408622293,1773985832527,-169.8009968,0.00011685,2]
[408622294,1773985832538,-138565.33489663,0.00011686,2]
[408622295,1773985832553,-5000.00113981,0.00011686,2]
[408622296,1773985832579,-11573.8290262,0.00011686,2]
[408622297,1773985832592,-1611.15630401,0.00011686,2]
[408622300,1773985837797,-1550.46524649,0.00011686,2]
[408622301,1773985837908,-7833.57516039,0.00011686,2]
[408622302,1773985837919,-1846.72541258,0.00011686,2]
[408622303,1773985837932,-71386.09970447,0.00011686,2]
[408622304,1773985837943,-500.0,0.00011686,2]
[408622305,1773985838020,-668.27750435,0.00011686,2]
[408622316,1773985842932,-2000.1049965,0.00011686,2]
[408622322,1773985845771,-502.0,0.00011686,2]
[408622329,1773985962609,-2500.0,0.00011586,2]
[408622330,1773985962632,-25583.12162685,0.000116,2]
[408622331,1773985962654,-33675.0145364,0.00011679,2]
[408622332,1773985962676,-5272.8978031,0.00011679,2]
[408622333,1773985962701,-312968.96603365,0.00011686,2]
[408622334,1773986320970,154.0,6.696e-05,2]
[408622339,1773987031900,-161.86,0.00010955,2]
[408622340,1773987031915,-166.66,0.00011216,2]
[408622341,1773987031926,-2216.46701204,0.000114,2]
[408622342,1773987032018,-25.0737403,0.000114,2]
[408622343,1773987032028,-1993.42838296,0.000114,2]
[408622344,1773987032040,-3937.1624783,0.000114,2]
[408622345,1773987032050,-5397.90368955,0.000114,2]
[408622346,1773987032061,-5513.53128362,0.000114,2]
[408622347,1773987032071,-4865.2165179,0.000114,2]
[408622348,1773987032081,-230.08146901,0.000114,2]
[408622349,1773987032091,-389.7195411,0.000114,2]
[408622350,1773987032101,-361.24580279,0.000114,2]
[408622351,1773987032111,-406.23521594,0.000114,2]
[408622352,1773987032120,-166.66,0.00011452,2]
[408622353,1773987032130,-42964.46624312,0.00011485,2]
[408622354,1773987032142,-554.61559081,0.00011485,2]
[408622355,1773987032154,-184.6494751,0.00011485,2]
[408622356,1773987032164,-2415.3505249,0.00011486,2]
[408622357,1773987032175,-16.64129381,0.00011486,2]
[408622358,1773987032185,-513.27075212,0.00011486,2]
[408622359,1773987032197,-182.83795907,0.00011486,2]
[408622360,1773987032209,-528.24124224,0.00011486,2]
[408622361,1773987032221,-882.31924771,0.00011486,2]
[408622378,1773987038220,-767.54052114,0.00011486,2]
[408622400,1773987040248,-641.3636,0.00011486,2]
[408622426,1773987043144,-316.220239,0.00011486,2]
[408622427,1773987043259,-327.365286,0.00011486,2]
[408622428,1773987043270,-344.0,0.00011486,2]
[408622429,1773987043282,-3078.89820875,0.00011486,2]
[408622430,1773987043294,-16909.53988797,0.00011486,2]
[408622431,1773987043304,-1810.46011195,0.00011486,2]
[408622435,1773987045988,-10000.01145799,0.00011486,2]
[408622436,1773987046012,-500.0,0.00011486,2]
[408622437,1773987046037,-500.0,0.00011507,2]
[408622438,1773987046061,-1279.44206964,0.00011507,2]
[408622439,1773987046160,-7.21793036,0.00011507,2]
[408622440,1773987046170,-181.71380645,0.00011569,2]
[408622441,1773987046180,-201.77912311,0.00011572,2]
[408622442,1773987046190,-453.03936377,0.00011578,2]
[408622443,1773987046200,-378.24977631,0.00011578,2]
[408622444,1773987046216,-121.75022369,0.00011578,2]
[408622445,1773987046225,-631.0048304,0.00011578,2]
[408622446,1773987046235,-468.86069776,0.00011578,2]
[408622447,1773987046245,-27020.34507309,0.00011579,2]
[408622448,1773987046256,-204600.0,0.00011579,2]
[408622451,1773987221201,154.0,6.696e-05,2]
[408622461,1773988162613,169.43,5.33e-05,2]
[408622468,1773988232222,-169.43,7.107e-05,2]
[408622469,1773988232232,-169.43,8.884e-05,2]
[408622470,1773988232242,-599.69,9.499e-05,2]
[408622471,1773988232284,-600.31,9.499e-05,2]
[408622472,1773988232293,-150.0,9.499e-05,2]
[408622473,1773988232303,-300.0,9.499e-05,2]
[408622474,1773988232312,-300.0,9.499e-05,2]
[408622475,1773988232323,-2127.65073362,9.5e-05,3]
[408622476,1773988232334,-16121.05247707,9.5e-05,3]
[408622477,1773988232346,-1715.35927846,9.5e-05,3]
[408622480,1773988238184,-7754.75379404,9.5e-05,3]
[408622481,1773988238259,-500.03289567,9.5e-05,3]
[408622482,1773988238340,-993.34152341,9.5e-05,3]
[408622483,1773988238355,-539.93551002,9.5e-05,3]
[408622484,1773988238376,-605.91046908,9.5e-05,3]
[408622486,1773988240369,-1117.99168444,9.5e-05,3]
[408622487,1773988240381,-4971.37698527,9.5e-05,3]
[408622488,1773988240393,-4926.23470969,9.5e-05,3]
[408622489,1773988240433,-397.53602495,9.5e-05,3]
[408622490,1773988240605,-43898.65698419,9.5e-05,3]
[408622491,1773988240615,-1680.0,0.00010449,2]
[408622492,1773988240626,-420.0,0.00010449,2]
[408622493,1773988240636,-152.46,0.00010475,2]
[408622494,1773988240646,-256.47263806,0.00010617,2]
[408622495,1773988240656,-169.43,0.0001066,2]
[408622496,1773988240666,-591.57,0.00010753,2]
[408622497,1773988240675,-2556.56,0.00010758,2]
[408622498,1773988240685,-2633.67,0.00010774,2]
[408622499,1773988240695,-500.0,0.00010817,2]
[408622500,1773988240705,-496.2589,0.00010855,2]
[408622501,1773988240714,-19837.6,0.00010882,2]
[408622502,1773988240723,-501.0,0.0001137,2]
[408622503,1773988240733,-219.46472309,0.000114,2]
[408622504,1773988240743,-333.39589351,0.000114,2]
[408622505,1773988240753,-358.10123954,0.000114,2]
[408622506,1773988240763,-372.31127174,0.000114,2]
[408622507,1773988240777,-1546.03086757,0.00011486,2]
[408622508,1773988240786,-801.21488743,0.00011486,2]
[408622509,1773988240796,-500.0,0.00011507,2]
[408622510,1773988240805,-2421.08118208,0.00011575,2]
[408622511,1773988240816,-154.61854393,0.00011576,2]
[408622512,1773988240825,-209.06228637,0.00011579,2]
[408622513,1773988240835,-1000.0,0.00011582,2]
[408622514,1773988240844,-2500.0,0.00011582,2]
[408622515,1773988240855,-150.0,0.000116,2]
[408622516,1773988240865,-2069.5882561,0.00011614,2]
[408622517,1773988240874,-7220.0229768,0.00011614,2]
[408622518,1773988240884,-66590.11254286,0.00011614,2]
[408622519,1773988240895,-78228.43373349,0.00011614,2]
[408622521,1773988240906,-18385.88561907,0.00011614,2]
[408622523,1773988240917,-373.5644,0.00011614,2]
[408622524,1773988240929,-2090.40897658,0.00011614,2]
[408622525,1773988240940,-395.472,0.00011614,2]
[408622526,1773988240951,-857.81402166,0.00011614,2]
[408622527,1773988240979,-20441.79696029,0.00011614,2]
[408622534,1773988243214,-2112.68772881,0.00011614,2]
[408622535,1773988243225,-6255.84302023,0.00011614,2]
[408622536,1773988243272,-2432.6275441,0.00011614,2]
[408622537,1773988243284,-5642.70196642,0.00011614,2]
[408622538,1773988243331,-9449.51153875,0.00011614,2]
[408622539,1773988246110,-27834.46965104,0.00011614,2]
[408622540,1773988246120,-200.0,0.00011675,2]
[408622541,1773988246130,-221.89186,0.00011686,2]
[408622542,1773988246140,-166.66,0.00011689,2]
[408622543,1773988246150,-2000.0,0.00011786,2]
[408622544,1773988246160,-500.0,0.00011885,2]
[408622545,1773988246169,-500.0,0.00011885,3]
[408622546,1773988246179,-626.77083666,0.00011885,4]
[408622547,1773988246189,-221.89186,0.00011886,2]
[408622548,1773988246199,-154.9,0.00011912,2]
[408622549,1773988246208,-166.66,0.00011925,2]
[408622550,1773988246218,-157.15825782,0.00012044,2]
[408622551,1773988246227,-150.0,0.00012044,2]
[408622552,1773988246237,-150.0,0.00012044,2]
[408622553,1773988246247,-200.0,0.00012044,2]
[408622554,1773988246258,-154.16100407,0.00012044,2]
[408622555,1773988246267,-500.0,0.00012044,2]
[408622556,1773988246277,-221.89186,0.00012086,2]
[408622557,1773988246287,-387.73716739,0.00012131,2]
[408622558,1773988246297,-1340.89083278,0.00012137,2]
[408622559,1773988246310,-2895.86916722,0.00012137,2]
[408622560,1773988246319,-166.66,0.00012161,2]
[408622561,1773988246330,-204.1603316,0.00012223,2]
[408622562,1773988246340,-221.89186,0.00012286,2]
[408622563,1773988246349,-500.0,0.00012322,2]
[408622564,1773988246359,-501.6238225,0.00012322,2]
[408622565,1773988246369,-218.59404172,0.00012322,2]
[408622566,1773988246379,-500.0,0.00012322,2]
[408622567,1773988246388,-317.12755464,0.00012393,2]
[408622568,1773988246398,-328.20248843,0.00012393,2]
[408622569,1773988246407,-1195.27073389,0.00012394,2]
[408622570,1773988246452,-444.58999998,0.00012394,2]
[408622574,1773988293595,-1000.0,0.00011514,2]
[408622575,1773988293625,-1408.9041,0.00011514,2]
[408622576,1773988293657,-2500.0,0.00011514,2]
[408622577,1773988293687,-11503.41799189,0.00012394,2]
[408622578,1773988293716,-166.66,0.00012397,2]
[408622579,1773988293747,-2421.08118203,0.00012479,2]
[408622580,1773988293777,-221.89186,0.00012486,2]
[408622581,1773988293809,-151.0,0.00012494,2]
[408622582,1773988293840,-500.0,0.00012494,2]
[408622583,1773988293871,-1191.11104075,0.00012494,2]
[408622584,1773988293901,-250.0,0.00012494,2]
[408622585,1773988293930,-262.47755205,0.00012494,2]
[408622586,1773988293963,-500.0,0.00012494,2]
[408622587,1773988293994,-2419.07561713,0.00012494,2]
[408622588,1773988294025,-500.0,0.00012494,2]
[408622589,1773988294064,-500.0,0.00012494,2]
[408622590,1773988294106,-617.88175968,0.00012494,2]
[408622591,1773988294140,-500.0,0.00012494,2]
[408622592,1773988294173,-500.0,0.00012494,2]
[408622593,1773988294206,-211.96897265,0.00012494,2]
[408622594,1773988294221,-349.05984764,0.00012494,2]
[408622595,1773988294232,-500.0,0.00012494,2]
[408622596,1773988294242,-150.94015236,0.00012494,2]
[408622597,1773988294256,-33.3134627,0.00012494,2]
[408622598,1773988294266,-517.38418028,0.00012494,2]
[408622599,1773988294277,-500.0,0.00012494,2]
[408622600,1773988294287,-358.20645702,0.00012494,2]
[408622601,1773988294300,-141.79354298,0.00012494,2]
[408622602,1773988294311,-250.0,0.00012494,2]
[408622603,1773988294321,-500.0,0.00012494,2]
[408622604,1773988294332,-250.0,0.00012494,2]
[408622605,1773988294342,-500.0,0.00012494,2]
[408622606,1773988294353,-250.0,0.00012494,2]
[408622607,1773988294363,-278.44121401,0.00012494,2]
[408622608,1773988294374,-329.76524301,0.00012494,2]
[408622609,1773988294386,-170.23475699,0.00012494,2]
[408622610,1773988294397,-250.0,0.00012494,2]
[408622611,1773988294407,-250.0,0.00012494,2]
[408622612,1773988294417,-500.0,0.00012494,2]
[408622613,1773988294428,-250.0,0.00012494,2]
[408622614,1773988294439,-250.0,0.00012494,2]
[408622615,1773988294450,-500.0,0.00012494,2]
[408622616,1773988294461,-250.0,0.00012494,2]
[408622617,1773988294473,-250.0,0.00012494,2]
[408622618,1773988294484,-500.0,0.00012494,2]
[408622619,1773988294495,-250.0,0.00012494,2]
[408622620,1773988294505,-250.0,0.00012494,2]
[408622621,1773988294516,-500.0,0.00012494,2]
[408622622,1773988294526,-250.0,0.00012494,2]
[408622623,1773988294537,-250.0,0.00012494,2]
[408622624,1773988294548,-500.0,0.00012494,2]
[408622625,1773988294558,-250.0,0.00012494,2]
[408622626,1773988294568,-250.0,0.00012494,2]
[408622627,1773988294579,-500.0,0.00012494,2]
[408622628,1773988294589,-250.0,0.00012494,2]
[408622629,1773988294600,-250.0,0.00012494,2]
[408622630,1773988294610,-500.0,0.00012494,2]
[408622631,1773988294620,-250.0,0.00012494,2]
[408622632,1773988294631,-250.0,0.00012494,2]
[408622633,1773988294641,-500.0,0.00012494,2]
[408622634,1773988294651,-250.0,0.00012494,2]
[408622635,1773988294662,-267.17450794,0.00012494,2]
[408622636,1773988294673,-500.0,0.00012494,2]
[408622637,1773988294683,-500.0,0.00012494,2]
[408622638,1773988294693,-500.0,0.00012494,2]
[408622639,1773988294703,-250.0,0.00012494,2]
[408622640,1773988294713,-353.1154207,0.00012494,2]
[408622641,1773988294724,-203.4015308,0.00012494,2]
[408622642,1773988294734,-250.0,0.00012494,2]
[408622643,1773988294744,-259.49177546,0.00012494,2]
[408622644,1773988294756,-11.86821279,0.00012494,2]
[408622645,1773988294767,-151.0,0.00012494,2]
[408622646,1773988294776,-3.79178721,0.00012494,2]
[408622647,1773988294797,-147.20821279,0.00012494,2]
[408622648,1773988294807,-151.0,0.00012494,2]
[408622649,1773988294817,-150.0,0.000125,2]
[408622650,1773988294828,-166.66,0.0001252,2]
[408622651,1773988294838,-500.0,0.00012549,2]
[408622652,1773988294848,-197.15852225,0.00012549,2]
[408622653,1773988294858,-289.01886902,0.00012566,2]
[408622654,1773988294869,-500.0,0.00012604,2]
[408622655,1773988294879,-320.03557797,0.00012654,2]
[408622656,1773988294891,-142.45059986,0.00012654,2]
[408622657,1773988294901,-79.44126014,0.00012659,2]
[408622658,1773988294913,-151.0,0.00012659,2]
[408622659,1773988294926,-269.55873986,0.00012659,2]
[408622660,1773988294936,-195.0,0.00012665,2]
[408622661,1773988294946,-35.44126014,0.00012686,2]
[408622662,1773988294958,-186.45059986,0.00012686,2]
[408622663,1773988294969,-500.0,0.00012714,2]
[408622664,1773988294979,-352.32522553,0.00012742,2]
[408622665,1773988294990,-152.33521536,0.00012769,2]
[408622666,1773988295006,-250.0,0.00012769,2]
[408622667,1773988295018,-97.66478464,0.00012769,2]
[408622668,1773988295029,-164.81276741,0.00012804,2]
[408622669,1773988295042,-3.18723259,0.00012804,2]
[408622670,1773988295052,-496.81276741,0.00012824,2]
[408622671,1773988295068,-3.18723259,0.00012824,2]
[408622672,1773988295079,-500.0,0.00012879,2]
[408622673,1773988295089,-166.66,0.00012933,2]
[408622674,1773988295098,-500.0,0.00012934,2]
[408622675,1773988295108,-168.0,0.00012939,2]
[408622676,1773988295118,-1081.22838454,0.00012977,2]
[408622677,1773988295130,-500.0,0.00012977,2]
[408622678,1773988295144,-500.0,0.00012977,2]
[408622679,1773988295156,-617.88175968,0.00012977,2]
[408622680,1773988295172,-500.0,0.00012977,2]
[408622681,1773988295184,-500.0,0.00012977,2]
[408622682,1773988295196,-59.88985578,0.00012977,2]
[408622683,1773988295210,-501.13896451,0.00012977,2]
[408622684,1773988374401,150.0,0.000145,120]
[408622685,1773988403697,-534.00512476,0.00012486,2]
[408622686,1773988403719,-500.0,0.00012486,2]
[408622687,1773988403742,-500.0,0.00012486,2]
[408622688,1773988403765,-500.0,0.00012486,2]
[408622689,1773988403787,-500.0,0.00012486,2]
[408622690,1773988403809,-500.0,0.00012486,2]
[408622691,1773988403831,-500.0,0.00012486,2]
[408622692,1773988403853,-500.0,0.00012486,2]
[408622693,1773988403876,-642.37146389,0.00012486,2]